bitfinex-derivatives/quotes_ETHF0:USTF0_20260123
["timestamp","ask_amount","ask_price","bid_price","bid_amount"]
[1769149620343,0.14585509,2961.1,2959.7,0.00337955]
[1769149620547,0.14585509,2960.9,2959.2,2.462]
[1769149620749,0.14585509,2960.7,2959.2,2.462]
[1769149620950,0.35298048,2960.6,2959.2,2.462]
[1769149621253,0.14585509,2961.0,2959.2,2.462]
[1769149621451,0.14585509,2960.8,2959.2,2.462]
[1769149621749,0.14585509,2960.8,2959.2,2.46609351]
[1769149624844,1.04013207,2960.8,2959.3,0.89427698]
[1769149625045,0.89427698,2960.5,2959.3,2.818]
[1769149625249,1.03317204,2960.5,2959.3,2.818]
[1769149625948,1.03317204,2960.5,2959.3,2.816]
[1769149627051,0.89427698,2960.2,2959.2,0.00409351]
[1769149628451,0.00506448,2960.0,2959.2,0.00409351]
[1769149628645,0.14775238,2960.0,2958.3,0.16922]
[1769149628851,1.03317204,2959.1,2957.5,0.16926]
[1769149629055,0.13889506,2959.5,2958.0,0.89427698]
[1769149629354,1.33889506,2959.9,2958.3,0.89427698]
[1769149629556,0.89427698,2959.7,2958.3,0.89427698]
[1769149629748,1.03317204,2959.7,2958.3,0.89761413]
[1769149629953,1.03317204,2959.7,2959.0,0.04498158]
[1769149630353,1.03317204,2959.7,2958.3,0.89761413]
[1769149630354,0.13889506,2959.6,2958.3,0.89761413]
[1769149630957,0.14775238,2960.0,2958.3,0.00333715]
[1769149634660,0.14775238,2960.0,2958.3,0.14055331]
[1769149636057,0.14775238,2960.0,2958.3,0.00333715]
[1769149636257,0.14775238,2960.0,2958.3,2.80933715]
[1769149636955,0.14775238,2960.0,2958.3,0.00333715]
[1769149639158,1.31774621,2959.8,2958.3,0.00333715]
[1769149639357,0.13889506,2959.1,2956.4,4.22998637]
[1769149639558,0.13889506,2959.1,2955.9,9.69864594]
[1769149639559,0.13889506,2958.2,2955.9,0.1383001]
[1769149639756,2.9911906,2959.4,2955.5,4.22998637]
[1769149639757,0.13889506,2958.6,2956.8,0.138022]
[1769149639959,0.13889506,2959.2,2956.9,0.138022]
[1769149640461,1e-08,2958.0,2957.0,1.879]
[1769149640853,0.13889507,2958.0,2956.9,0.00261537]
[1769149641963,0.13889507,2958.0,2955.3,2.01926078]
[1769149642461,0.13889506,2957.8,2955.3,0.14026078]
[1769149642665,0.13889506,2957.8,2955.4,2.807]
[1769149642865,0.14174122,2957.8,2955.4,0.00324764]
[1769149643361,0.13889506,2957.2,2955.4,0.14350841]
[1769149644160,0.13889506,2957.6,2955.4,0.14350841]
[1769149644868,0.13889506,2957.6,2955.5,1.88]
[1769149645266,0.13889506,2957.6,2955.4,0.00324764]
[1769149645669,1.45664127,2957.0,2955.4,0.00324764]
[1769149645965,0.00284616,2957.8,2954.7,0.14316232]
[1769149645966,0.13889506,2956.7,2954.7,0.14316232]
[1769149646868,0.13889506,2956.7,2954.7,0.14609868]
[1769149647257,0.13889506,2956.7,2954.8,1.88]
[1769149647462,0.13889506,2956.7,2954.8,2.02316232]
[1769149647668,0.13889506,2956.7,2954.9,0.14316232]
[1769149649064,0.13889506,2956.7,2954.9,2.02316232]
[1769149649262,0.13889506,2956.7,2954.9,2.95016232]
[1769149651659,0.13889506,2956.7,2955.0,0.14316232]
[1769149651866,0.13889506,2956.7,2954.9,0.16941]
[1769149653276,0.13889506,2956.7,2954.9,0.29913559]
[1769149653577,0.13889506,2956.7,2955.0,0.12972559]
[1769149653974,0.13889506,2956.7,2955.1,0.16941]
[1769149654270,0.17209616,2957.8,2955.1,0.16941]
[1769149654271,0.13306277,2957.3,2955.1,0.16941]
[1769149655267,0.13306277,2957.3,2954.8,1.881]
[1769149655566,0.13306277,2957.3,2954.7,0.00293636]
[1769149655763,0.13306277,2956.8,2954.7,0.00293636]
[1769149655964,0.13306277,2956.3,2954.7,0.00293636]
[1769149656169,1.2,2956.2,2954.7,0.00293636]
[1769149656473,0.13306277,2956.1,2954.7,0.00293636]
[1769149657574,1.45080898,2956.1,2953.4,0.12972559]
[1769149657774,1.45080898,2956.1,2942.9,10.354]
[1769149657775,0.13306277,2954.9,2951.7,0.12972559]
[1769149657980,0.13306277,2954.9,2952.1,0.12972559]
[1769149658282,0.13306277,2954.9,2952.6,0.12972559]
[1769149658575,0.13306277,2954.9,2952.7,2.93372559]
[1769149658780,0.1370951,2954.9,2952.8,0.12972559]
[1769149659183,0.00403233,2954.9,2953.1,0.12972559]
[1769149659382,0.00403233,2954.9,2953.2,2.01072559]
[1769149659582,0.00403233,2954.9,2953.2,0.12972559]
[1769149659782,0.13306277,2954.7,2952.6,0.00317747]
[1769149660683,0.13306277,2954.4,2952.6,0.00317747]
[1769149661286,0.13306277,2954.1,2952.6,0.00317747]
[1769149661693,0.13306277,2953.9,2952.6,0.00317747]
[1769149661894,0.13306277,2953.9,2951.4,0.1]
[1769149662390,0.13306277,2953.9,2951.5,2.81]
[1769149662888,0.13306277,2953.5,2951.5,0.00434951]
[1769149663092,0.13306277,2952.3,2949.4,0.12972559]
[1769149663290,0.13306277,2953.4,2950.4,0.12972559]
[1769149663594,0.13306277,2953.0,2950.6,0.12972559]
[1769149663790,0.13306277,2952.8,2950.5,2.01172559]
[1769149663996,0.1371879,2952.8,2950.6,2.93772559]
[1769149664289,0.1371879,2952.8,2950.5,2.94048315]
[1769149664498,0.1371879,2952.8,2950.6,0.12972559]
[1769149664896,0.00412513,2952.8,2950.9,0.12972559]
[1769149665094,0.1371879,2952.8,2951.0,2.807]
[1769149665392,0.1371879,2952.8,2950.9,0.12972559]
[1769149665798,0.00412513,2952.8,2950.9,0.12972559]
[1769149665999,0.00412513,2952.8,2951.6,0.00508233]
[1769149666393,0.13306277,2954.0,2951.6,0.13480792]
[1769149666596,0.13306277,2953.7,2951.6,0.00508233]
[1769149666791,0.13306277,2952.7,2950.5,0.00275756]
[1769149667399,0.13698066,2952.7,2950.5,0.00275756]
[1769149667599,0.13698066,2952.7,2950.6,2.01172559]
[1769149667795,0.13698066,2952.7,2950.7,2.814]
[1769149668002,0.13698066,2952.7,2950.6,0.12972559]
[1769149669005,0.13698066,2952.7,2950.7,2.813]
[1769149669401,0.13306277,2952.2,2950.5,0.00275756]
[1769149669610,0.13306277,2951.7,2949.0,1.883]
[1769149669805,0.13306277,2951.7,2948.7,1.4474718]
[1769149669806,0.13306277,2951.6,2949.1,2.811]
[1769149670008,0.13306277,2951.6,2949.2,0.12972559]
[1769149670508,0.00508233,2950.7,2949.2,0.13342477]
[1769149670699,0.00508233,2950.7,2949.2,0.00369918]
[1769149670900,0.00508233,2950.7,2949.2,0.13342477]
[1769149671309,0.00508233,2950.7,2949.4,0.12972559]
[1769149671509,0.13306277,2951.6,2949.2,0.00369918]
[1769149671704,0.13306277,2951.2,2949.2,0.00369918]
[1769149672204,0.13306277,2949.9,2947.2,2.813]
[1769149672403,0.13306277,2949.8,2947.3,2.813]
[1769149672608,0.13306277,2949.8,2947.4,0.12972559]
[1769149672910,0.13306277,2949.8,2947.6,0.12972559]
[1769149673107,0.00293556,2949.8,2947.6,0.1332859]
[1769149673310,0.13306277,2950.4,2948.0,0.12972559]
[1769149674012,0.13306277,2950.2,2948.1,1.883]
[1769149674209,0.13633299,2950.2,2948.0,0.12972559]
[1769149674514,0.13633299,2950.2,2947.8,0.12972559]
[1769149674814,0.13306277,2950.1,2947.8,2.94072559]
[1769149675113,0.13306277,2950.1,2947.8,0.12972559]
[1769149675909,0.13306277,2950.1,2948.0,0.12972559]
[1769149676209,0.13633299,2950.2,2947.6,0.00356031]
[1769149676518,0.30278277,2949.7,2947.6,0.00356031]
[1769149676707,0.13306277,2947.6,2946.0,0.05904254]
[1769149677009,0.13306277,2947.6,2945.6,0.12972559]
[1769149677213,0.13306277,2948.8,2945.6,0.12972559]
[1769149677515,0.13306277,2948.8,2946.6,0.12972559]
[1769149677716,0.13588602,2948.8,2946.6,0.13346375]
[1769149677918,0.13588602,2948.8,2947.0,0.00356031]
[1769149678112,0.13588602,2948.8,2946.6,0.13346375]
[1769149678309,0.13588602,2948.8,2947.0,0.00356031]
[1769149678505,0.13588602,2948.8,2947.1,1.884]
[1769149678813,0.13588602,2948.8,2947.2,0.00356031]
[1769149679013,0.13588602,2948.8,2947.3,2.819]
[1769149679416,0.13588602,2948.8,2947.3,0.00356031]
[1769149679610,0.13588602,2948.8,2947.4,0.00356031]
[1769149679807,0.13588602,2948.8,2946.7,0.12972559]
[1769149680011,0.13588602,2948.8,2947.0,0.00356031]
[1769149680515,0.00282325,2948.8,2947.2,0.12972559]
[1769149680710,1.31774621,2950.0,2947.7,1.4474718]
[1769149680711,0.13306277,2950.0,2947.7,1.4474718]
[1769149680912,0.13306277,2951.5,2948.4,0.12972559]
[1769149681112,0.13306277,2951.4,2948.6,0.12972559]
[1769149681608,0.13306277,2951.4,2949.1,0.1332859]
[1769149681809,0.1369938,2951.4,2949.1,0.13225369]
[1769149682011,0.00393103,2951.4,2949.9,0.00356031]
[1769149682215,0.00393103,2951.4,2950.0,1.885]
[1769149682416,0.00393103,2951.4,2949.4,2.817]
[1769149682618,0.00393103,2951.4,2949.4,0.00356031]
[1769149682917,0.00393103,2951.4,2949.5,2.82056031]
[1769149683220,0.00393103,2951.4,2950.1,0.0050913]
[1769149683521,0.15016275,2951.4,2949.1,0.0025281]
[1769149683715,0.14623172,2950.7,2949.1,0.0025281]
[1769149683915,0.14623172,2950.5,2948.2,0.13749185]
[1769149684114,0.0050913,2951.0,2948.2,0.13749185]
[1769149684316,0.0050913,2951.0,2948.1,1.885]
[1769149684317,0.0050913,2951.0,2948.7,0.13749185]
[1769149684518,0.14623172,2951.1,2948.9,0.13749185]
[1769149684816,0.0050913,2950.1,2949.0,0.14105216]
[1769149685016,0.00393103,2951.4,2949.0,0.13749185]
[1769149685316,0.00393103,2951.4,2948.9,0.00369361]
[1769149685317,0.00393103,2951.4,2950.0,0.00356031]
[1769149685521,0.00393103,2951.4,2950.1,1.885]
[1769149685728,0.00393103,2951.4,2950.4,0.00356031]
[1769149685921,0.00393103,2951.4,2950.1,1.885]
[1769149686222,0.00393103,2951.4,2950.5,0.00356031]
[1769149686420,0.00393103,2951.4,2950.6,0.00356031]
[1769149686820,0.14213767,2952.3,2951.3,0.00356031]
[1769149687024,0.14213767,2953.1,2950.9,0.00356031]
[1769149687322,0.27213241,2953.5,2951.0,0.00356031]
[1769149687522,0.14213767,2953.5,2951.0,0.00356031]
[1769149687716,0.14213767,2953.5,2951.3,0.00356031]
[1769149687717,0.14610073,2953.5,2951.3,0.00356031]
[1769149688025,0.14610073,2953.5,2951.3,0.14247143]
[1769149688225,0.14610073,2953.5,2951.6,0.00356031]
[1769149688419,0.31168767,2952.7,2951.0,0.00375445]
[1769149688619,0.14213767,2952.6,2951.0,0.00375445]
[1769149689014,0.14213767,2952.6,2951.1,0.00356031]
[1769149689220,0.14213767,2952.6,2951.5,0.00508242]
[1769149689717,0.14213767,2952.6,2951.0,0.00375445]
[1769149689922,0.00508242,2952.3,2951.0,2.82175445]
[1769149690326,0.00508242,2952.3,2951.0,2.82531476]
[1769149690522,0.00508242,2952.3,2951.0,2.82275445]
[1769149691127,0.00508242,2952.3,2951.3,0.00356031]
[1769149691624,0.00508242,2952.3,2951.4,0.00356031]
[1769149691824,0.00508242,2952.3,2951.3,0.00356031]
[1769149692226,0.00508242,2952.3,2951.0,2.82275445]
[1769149692417,0.00508242,2952.3,2951.3,0.00356031]
[1769149693024,0.00508242,2952.3,2951.5,0.00356031]
[1769149693223,0.14722009,2952.3,2951.0,0.00375445]
[1769149694022,0.00508242,2952.3,2951.0,0.00731476]
[1769149694229,0.14610073,2953.5,2952.0,0.00356031]
[1769149694425,0.14610073,2953.5,2951.4,0.00864273]
[1769149694624,0.14213767,2952.0,2949.0,0.13891112]
[1769149694835,0.14213767,2951.7,2949.1,0.13891112]
[1769149695024,0.14213767,2951.5,2949.3,0.13891112]
[1769149695334,1.2,2951.9,2950.2,0.00356031]
[1769149695527,1.2,2951.9,2950.2,0.00358688]
[1769149695734,1.2,2951.9,2950.6,0.00356031]
[1769149695935,0.00508242,2951.3,2950.6,0.00356031]
[1769149696120,0.00508242,2951.3,2950.8,0.00356031]
[1769149696121,0.0083286,2951.3,2950.8,0.00356031]
[1769149696430,0.0083286,2951.3,2950.4,0.00356031]
[1769149696632,0.0083286,2951.3,2950.5,0.00356031]
[1769149697023,0.0083286,2951.3,2950.6,0.00356031]
[1769149697328,0.0083286,2951.3,2950.2,0.00358688]
[1769149697629,0.0083286,2951.3,2950.3,1.88856031]
[1769149698034,0.0083286,2951.3,2950.2,2.82258688]
[1769149698431,0.14213767,2950.5,2948.1,0.13891112]
[1769149698730,1.30121624,2951.2,2946.8,0.13891112]
[1769149698731,0.14213767,2949.4,2946.8,0.13891112]
[1769149698936,0.14213767,2949.2,2946.9,1.885]
[1769149699135,0.14213767,2949.0,2946.9,1.885]
[1769149699436,0.14213767,2949.0,2947.5,0.13891112]
[1769149699437,0.00422905,2949.0,2947.5,0.13891112]
[1769149699738,0.00422905,2949.0,2947.8,0.00864273]
[1769149700034,0.00422905,2949.0,2947.8,0.00508242]
[1769149701534,0.00422905,2949.0,2947.9,0.00356031]
[1769149702432,0.14213767,2948.0,2945.6,0.13891112]
[1769149702632,0.14213767,2947.7,2945.6,0.13891112]
[1769149702826,1.26218054,2947.6,2945.0,0.13891112]
[1769149703026,0.14213767,2948.2,2945.2,0.13891112]
[1769149703231,0.95015703,2948.1,2945.2,0.13891112]
[1769149703436,0.14213767,2948.2,2945.6,0.13891112]
[1769149703639,0.14213767,2948.2,2945.8,0.13891112]
[1769149703842,0.14213767,2948.2,2946.2,0.00432979]
[1769149704137,0.14213767,2948.0,2943.4,0.13891112]
[1769149704337,0.16992,2946.1,2943.9,0.13891112]
[1769149704538,0.14213767,2946.2,2943.9,0.13891112]
[1769149704835,5.78076681,2947.9,2943.9,0.13891112]
[1769149704836,0.14213767,2946.7,2943.9,0.13891112]
[1769149705041,0.14213767,2946.7,2944.4,0.13891112]
[1769149705336,0.16989,2946.6,2944.4,0.14309446]
[1769149705538,1.34213767,2946.5,2944.4,0.14309446]
[1769149706341,0.31206767,2946.1,2944.4,0.00418334]
[1769149706547,0.14213767,2946.0,2944.4,0.00418334]
[1769149707033,0.16994,2945.8,2944.4,0.00418334]
[1769149707232,0.14213767,2945.6,2943.1,0.13891112]
[1769149707432,0.16997,2945.4,2943.1,0.13891112]
[1769149707632,0.16997,2945.4,2942.9,1.886]
[1769149707633,0.16997,2945.4,2943.3,0.13891112]
[1769149707931,0.14213767,2945.6,2943.4,0.14324091]
[1769149708132,0.14213767,2946.4,2943.6,0.13891112]
[1769149708336,0.17001,2944.7,2943.6,0.00282086]
[1769149708928,0.14213767,2945.5,2943.6,0.00282086]
[1769149709127,0.16995,2945.6,2943.6,0.00282086]
[1769149709532,0.16995,2945.6,2943.6,0.00715065]
[1769149709736,0.14213767,2946.1,2944.3,0.00432979]
[1769149709939,0.14213767,2946.1,2944.1,0.14324091]
[1769149710132,1.3699,2946.5,2944.2,0.14324091]
[1769149710340,1.3699,2946.5,2944.2,0.13891112]
[1769149710532,1.3699,2946.5,2944.4,0.00432979]
[1769149710935,1.3699,2946.5,2944.5,0.00432979]
[1769149711336,1.3699,2946.5,2944.6,0.00432979]
[1769149711532,0.14213767,2946.4,2943.7,0.13891112]
[1769149711739,0.16995,2945.7,2943.8,0.14833589]
[1769149712236,0.16996,2945.6,2943.8,0.14833589]
[1769149712643,0.16996,2945.6,2943.9,0.00432979]
[1769149713040,0.14617168,2945.0,2942.4,0.14833589]
[1769149713340,0.17003,2944.3,2942.6,0.14833589]
[1769149713844,0.14617168,2944.3,2942.0,0.14833589]
[1769149714035,0.14617168,2944.3,2939.6,2.72200081]
[1769149714036,0.17018,2941.7,2939.6,2.72200081]
[1769149714242,0.0043338,2941.7,2939.7,0.14833589]
[1769149714535,0.16994,2945.8,2941.2,0.14833589]
[1769149714736,0.17001,2944.6,2941.4,0.14833589]
[1769149715044,2.6629948,2947.9,2943.6,0.14833589]
[1769149715243,1.10219758,2947.4,2943.7,1.887]
[1769149715435,0.16992,2946.1,2943.7,1.89000332]
[1769149715836,0.17504091,2945.8,2943.7,0.00300332]
[1769149716045,0.17504091,2945.8,2944.9,0.06370554]
[1769149716438,0.17504091,2945.8,2944.1,0.14833589]
[1769149716642,0.17504091,2945.8,2943.7,0.00300332]
[1769149716643,0.00510091,2945.8,2944.2,0.14833589]
[1769149716843,0.00510091,2945.8,2944.9,0.06370554]
[1769149717039,0.00510091,2945.8,2945.0,0.00432979]
[1769149717245,0.00510091,2945.8,2945.4,0.00432979]
[1769149717449,0.16989,2946.7,2945.6,0.06370554]
[1769149717948,0.16997,2945.4,2943.7,0.15133921]
[1769149718339,0.16997,2945.4,2944.5,0.0146301]
[1769149719449,0.16997,2945.4,2943.8,2.849]
[1769149719642,0.16997,2945.4,2943.7,0.00300332]
[1769149719845,0.00509139,2945.2,2943.7,0.00300332]
[1769149720051,0.00841298,2945.2,2943.7,0.00300332]
[1769149721454,0.00841298,2945.2,2943.7,0.00733311]
[1769149721746,0.01183808,2945.1,2941.8,0.14833589]
[1769149721946,0.17007,2943.6,2941.8,0.14833589]
[1769149722646,0.00509139,2943.0,2941.8,0.14833589]
[1769149722846,0.00773785,2943.0,2941.8,0.15191709]
[1769149723047,0.17007,2943.6,2942.0,0.14833589]
[1769149723241,0.01183808,2945.1,2942.1,0.15342728]
[1769149723449,1.21183808,2945.0,2942.3,0.14833589]
[1769149723654,0.01283883,2944.9,2942.4,1.888]
[1769149724053,0.01587139,2944.9,2942.4,1.888]
[1769149724352,0.17003,2944.2,2942.5,0.14833589]
[1769149725757,0.00303256,2944.9,2942.5,0.14833589]
[1769149726561,0.00303256,2944.9,2943.4,0.00509139]
[1769149726762,0.00303256,2944.9,2943.4,0.15342728]
[1769149727165,0.00303256,2944.9,2943.6,0.14833589]
[1769149727368,0.00303256,2944.9,2943.6,2.03733589]
[1769149727563,0.00303256,2944.9,2943.7,2.844]
[1769149727766,0.00303256,2944.9,2943.7,2.843]
[1769149727969,0.00303256,2944.9,2943.8,0.14833589]
[1769149728768,0.16996,2945.5,2944.0,0.14833589]
[1769149729369,1.2,2946.0,2944.0,0.14833589]
[1769149729772,0.00331897,2946.0,2944.0,0.15248658]
[1769149732574,0.00331897,2946.0,2944.2,0.14833589]
[1769149732771,0.16991,2946.4,2944.2,0.14833589]
[1769149733071,0.16986,2947.2,2944.2,0.14833589]
[1769149733273,0.9552685,2947.1,2944.2,0.14833589]
[1769149733472,0.9552685,2947.0,2944.2,0.14833589]
[1769149733667,0.9552685,2946.9,2944.3,0.14833589]
[1769149733868,0.9552685,2946.8,2945.4,0.15342728]
[1769149734162,0.00436983,2946.9,2945.6,0.14833589]
[1769149734762,0.00436983,2946.9,2945.7,2.841]
[1769149734969,0.00436983,2946.9,2945.8,0.14833589]
[1769149735580,0.16989,2946.7,2945.4,0.00509139]
[1769149736562,0.16989,2946.7,2945.4,2.84709139]
[1769149737571,0.16989,2946.7,2945.5,2.842]
[1769149737769,0.00436983,2946.9,2945.5,2.99033589]
[1769149737969,0.00436983,2946.9,2945.6,0.14833589]
[1769149738170,0.00436983,2946.9,2945.6,2.98933589]
[1769149738371,0.00436983,2946.9,2945.7,0.14833589]
[1769149738774,0.00436983,2946.9,2945.7,2.98833589]
[1769149739181,0.00436983,2946.9,2945.7,0.14833589]
[1769149739371,0.00436983,2946.9,2945.8,1.888]
[1769149739775,0.00436983,2946.9,2945.9,0.14833589]
[1769149739968,0.17424983,2946.9,2945.4,0.00509139]
[1769149740174,0.17424983,2946.9,2945.4,1.89309139]
[1769149740880,0.17424983,2946.9,2945.5,0.14833589]
[1769149741572,0.00436983,2946.9,2945.5,0.14833589]
[1769149742171,0.27927639,2948.3,2945.7,0.14854729]
[1769149742374,0.16985,2947.4,2945.9,0.14854729]
[1769149742777,0.16981,2948.1,2945.9,0.14854729]
[1769149743281,0.17301732,2948.1,2946.1,0.14854729]
[1769149743475,2.9911906,2949.6,2946.1,0.14854729]
[1769149743476,2.32218247,2949.8,2946.1,0.15242696]
[1769149743787,0.16975,2949.1,2946.5,0.14696107]
[1769149744279,0.16975,2949.1,2946.7,0.14696107]
[1769149744479,0.16975,2949.1,2946.8,2.841]
[1769149744680,0.16976,2949.0,2946.9,0.14696107]
[1769149744979,0.00414251,2949.1,2947.1,0.14954437]
[1769149744980,0.16976,2948.9,2947.1,0.14954437]
[1769149745872,0.16976,2948.9,2946.1,0.00387967]
[1769149745873,0.16976,2948.9,2947.3,0.14954437]
[1769149747183,0.16977,2948.8,2947.3,0.14954437]
[1769149747376,0.16977,2948.8,2946.1,0.00387967]
[1769149747377,1.2,2948.8,2946.7,0.14954437]
[1769149747684,0.16979,2948.5,2946.7,0.14954437]
[1769149748281,0.16979,2948.5,2946.9,0.14954437]
[1769149749182,0.16981,2948.2,2946.9,0.14954437]
[1769149749686,0.16981,2948.2,2947.3,0.00509139]
[1769149752487,0.16976,2949.0,2947.3,0.00509139]
[1769149752683,0.16976,2949.0,2947.3,0.15501819]
[1769149752990,0.16976,2949.0,2947.4,0.1499268]
[1769149753990,0.16976,2949.0,2947.5,0.1501408]
[1769149755285,0.16981,2948.1,2947.3,1.39e-06]
[1769149756588,0.16982,2947.9,2946.9,0.5]
[1769149756892,0.00509139,2948.5,2946.9,0.5]
[1769149757293,0.00509139,2948.5,2946.9,0.64954437]
[1769149757486,0.00509139,2948.5,2947.0,0.14954437]
[1769149759592,0.17488139,2948.5,2947.0,0.14954437]
[1769149759989,0.00509139,2948.5,2947.0,0.14954437]
[1769149760284,0.00509139,2948.5,2947.2,0.14954437]
[1769149768596,0.00509139,2948.5,2947.3,2.73454437]
[1769149768796,0.00509139,2948.5,2947.4,0.14954437]
[1769149769695,0.16975,2949.2,2947.4,0.14954437]
[1769149769893,0.16976,2948.9,2947.4,0.14954437]
[1769149770100,0.96243859,2948.8,2947.5,0.14954437]
[1769149770293,0.96243859,2948.7,2947.5,0.14954437]
[1769149770494,0.96243859,2948.6,2947.5,0.14954437]
[1769149770694,0.16976,2948.9,2947.5,0.14954437]
[1769149770695,0.96243859,2948.5,2947.5,0.14954437]
[1769149770895,0.16976,2948.9,2947.5,0.14954437]
[1769149771199,0.96238927,2948.8,2947.5,0.14954437]
[1769149771400,0.96238927,2948.7,2947.5,0.14954437]
[1769149771696,0.96238927,2948.6,2947.5,0.14954437]
[1769149771903,0.96238927,2948.5,2947.5,0.14954437]
[1769149772095,0.16976,2948.9,2947.5,0.14954437]
[1769149772295,1.31478188,2948.8,2947.5,0.14954437]
[1769149772495,0.96323178,2948.7,2947.5,0.14954437]
[1769149772695,0.96323178,2948.6,2947.5,0.14954437]
[1769149772995,0.96323178,2948.5,2947.5,0.14954437]
[1769149773194,0.96323178,2948.4,2947.5,0.14954437]
[1769149773396,0.16976,2948.9,2947.5,0.14954437]
[1769149773599,1.31605941,2948.8,2947.5,0.14954437]
[1769149773900,1.31606512,2948.7,2947.5,2.94954437]
[1769149774100,0.96418274,2948.6,2947.5,2.94754437]
[1769149774301,0.96418274,2948.5,2947.5,0.14954437]
[1769149774601,0.96418274,2948.4,2947.5,2.94754437]
[1769149774807,0.16976,2948.9,2947.5,2.94754437]
[1769149774997,2.32218247,2949.2,2947.0,0.15028502]
[1769149774998,1.3152468,2948.8,2947.0,0.15028502]
[1769149775304,0.16979,2948.4,2947.0,0.15028502]
[1769149775503,0.96426997,2948.3,2947.0,0.15028502]
[1769149775698,0.96426997,2948.2,2947.0,0.15028502]
[1769149775898,0.96426997,2948.1,2947.0,0.15028502]
[1769149776205,0.16979,2948.4,2947.0,0.15028502]
[1769149776206,0.16979,2948.4,2947.4,0.00509139]
[1769149776406,0.96414695,2948.3,2947.4,0.00509139]
[1769149776606,0.96414695,2948.2,2947.4,0.00509139]
[1769149776803,0.96414695,2948.1,2947.4,0.00509139]
[1769149777006,0.16979,2948.4,2947.4,0.00509139]
[1769149777206,0.96415325,2948.3,2947.4,0.00509139]
[1769149777507,0.96415325,2948.2,2947.4,0.00509139]
[1769149777808,0.96415325,2948.1,2947.4,0.00509139]
[1769149778007,0.16979,2948.4,2947.4,0.00509139]
[1769149778210,0.9641557,2948.3,2947.4,0.00509139]
[1769149778410,0.9641557,2948.2,2947.4,0.00509139]
[1769149778602,0.9641557,2948.1,2947.4,0.00509139]
[1769149778803,0.16979,2948.4,2947.4,0.00509139]
[1769149779007,0.96421062,2948.3,2947.4,0.00509139]
[1769149779210,0.96421062,2948.2,2947.4,0.00509139]
[1769149779406,0.96421062,2948.1,2947.4,0.00509139]
[1769149779604,0.16979,2948.4,2947.4,0.00509139]
[1769149779912,0.96429718,2948.3,2947.4,0.00509139]
[1769149780112,0.96429718,2948.2,2947.4,0.00509139]
[1769149780311,0.96429718,2948.1,2947.4,0.00509139]
[1769149780511,0.16979,2948.4,2947.4,0.00509139]
[1769149780705,0.96442854,2948.3,2947.4,0.00509139]
[1769149780904,0.96442854,2948.2,2947.4,0.00509139]
[1769149781204,0.96442854,2948.1,2947.4,0.00509139]
[1769149781408,0.16979,2948.4,2947.4,0.00509139]
[1769149781710,0.96455288,2948.3,2947.4,0.00509139]
[1769149781910,0.96455288,2948.2,2947.4,0.00509139]
[1769149782212,1.32781621,2948.0,2946.3,0.15028502]
[1769149782515,0.16984,2947.5,2946.3,0.15028502]
[1769149782702,0.96455288,2947.4,2946.3,0.15028502]
[1769149782908,0.00509139,2948.1,2946.3,0.15028502]
[1769149783102,1.31185319,2948.0,2946.3,0.15028502]
[1769149783414,0.9637841,2947.9,2946.3,0.15028502]
[1769149783713,0.9637841,2947.8,2946.3,0.15028502]
[1769149783916,0.9637841,2947.7,2946.3,0.15028502]
[1769149784213,0.17490139,2948.1,2946.3,0.15028502]
[1769149784411,1.31133369,2948.0,2946.3,0.15028502]
[1769149784614,0.96332983,2947.9,2946.3,0.15028502]
[1769149784811,0.96332983,2947.8,2946.3,0.15028502]
[1769149785113,0.17490139,2948.1,2946.3,0.15028502]
[1769149785114,0.96332983,2947.7,2946.3,0.15028502]
[1769149785308,0.17490139,2948.1,2946.4,0.15028502]
[1769149785513,1.48003233,2948.0,2946.5,2.78]
[1769149785713,0.96315101,2947.9,2946.5,2.93028502]
[1769149785912,0.96315101,2947.9,2946.6,0.15028502]
[1769149786113,0.16981,2948.0,2946.6,0.15028502]
[1769149786303,0.16981,2948.0,2946.8,0.15028502]
[1769149787102,0.00509139,2948.1,2946.8,0.15028502]
[1769149788510,0.00509139,2948.1,2946.9,2.778]
[1769149788707,0.00509139,2948.1,2946.8,0.15028502]
[1769149789016,0.00509139,2948.1,2946.8,2.58928502]
[1769149789215,0.00509139,2948.1,2946.9,0.15028502]
[1769149789417,0.00509139,2948.1,2947.0,2.78]
[1769149789613,0.00509139,2948.1,2946.3,5.649]
[1769149789614,0.16983,2947.8,2946.4,0.15028502]
[1769149789813,0.96336163,2947.7,2946.4,0.15028502]
[1769149790013,0.16983,2947.8,2946.4,0.15028502]
[1769149790216,0.963308,2947.7,2946.4,0.15028502]
[1769149790414,0.16983,2947.8,2946.4,0.15028502]
[1769149790712,0.96308394,2947.7,2946.4,0.15028502]
[1769149791016,0.16983,2947.8,2946.4,0.15028502]
[1769149791210,0.96308769,2947.7,2946.4,0.15028502]
[1769149791519,0.16983,2947.8,2946.4,0.15028502]
[1769149791722,0.96280444,2947.7,2946.4,0.15028502]
[1769149792015,0.96280444,2947.7,2946.1,2.46387967]
[1769149792016,0.00509139,2948.1,2946.5,2.779]
[1769149792219,0.00509139,2948.1,2946.6,0.15028502]
[1769149792416,0.00509139,2948.1,2946.7,0.15028502]
[1769149793824,0.00509139,2948.1,2946.9,0.15028502]
[1769149794324,0.00509139,2948.1,2947.1,0.15028502]
[1769149796524,0.00509139,2948.1,2947.0,2.775]
[1769149797027,0.00509139,2948.1,2946.6,0.15028502]
[1769149797329,0.00509139,2948.1,2946.7,2.774]
[1769149798023,0.17490139,2948.1,2946.6,0.15028502]
[1769149801032,0.17490139,2948.1,2946.8,0.15028502]
[1769149801333,0.51604907,2948.0,2946.8,0.15028502]
[1769149801529,0.16982,2948.0,2946.8,0.15028502]
[1769149802325,0.16982,2947.9,2946.2,0.14289872]
[1769149802630,0.34611368,2947.8,2946.3,0.14289872]
[1769149802828,0.16982,2947.9,2946.3,0.14289872]
[1769149803219,0.00509139,2948.1,2946.3,0.14289872]
[1769149803424,0.00509139,2948.1,2946.5,0.14289872]
[1769149806137,0.00509139,2948.1,2946.7,0.13990586]
[1769149806829,0.00414251,2949.1,2946.7,0.13990586]
[1769149807032,1.3058194,2949.0,2946.7,0.13990586]
[1769149807226,0.95941732,2948.9,2946.7,0.13990586]
[1769149807425,0.00414251,2949.1,2946.9,4.22998637]
[1769149807626,0.00414251,2949.1,2947.0,0.13990586]
[1769149807937,0.00414251,2949.1,2947.2,0.13990586]
[1769149808437,0.00414251,2949.1,2947.4,0.13990586]
[1769149808736,0.00414251,2949.1,2947.6,0.13990586]
[1769149809736,0.00414251,2949.1,2948.2,0.13990586]
[1769149809934,0.00414251,2949.1,2948.2,0.14416102]
[1769149810236,0.16969,2950.1,2948.2,0.14416102]
[1769149810436,1.30179928,2950.0,2948.2,0.14416102]
[1769149810733,1.30179928,2949.9,2948.2,0.14416102]
[1769149810928,0.16969,2950.1,2948.2,0.14416102]